bitfinex-derivatives/quotes_BNBF0:USTF0_20230831
["timestamp","ask_amount","ask_price","bid_price","bid_amount"]
[1693500571430,0.83891244,219.29,218.64,0.19140987]
[1693500571629,0.83891244,219.29,218.64,0.26569541]
[1693500571830,0.83891244,219.3,218.65,0.19140987]
[1693500572024,0.83891244,219.28,218.65,0.19140987]
[1693500572227,0.83891244,219.29,218.69,0.07428554]
[1693500572531,0.83891244,219.28,218.7,0.19140987]
[1693500572732,0.83891244,219.35,218.7,0.19140987]
[1693500573031,0.83891244,219.34,218.7,0.26569541]
[1693500573232,0.83891244,219.34,218.71,0.26569541]
[1693500573433,0.83891244,219.33,218.72,0.19140987]
[1693500573828,0.14565138,219.44,218.78,0.07428554]
[1693500574031,0.83832993,219.43,218.78,0.07428554]
[1693500574228,0.83832993,219.43,218.79,0.19140987]
[1693500574429,0.98398131,219.43,218.79,0.19140987]
[1693500574631,0.83832993,219.42,218.79,0.19140987]
[1693500574834,0.83832993,219.42,218.79,0.26569541]
[1693500575034,0.83832993,219.42,218.8,0.19140987]
[1693500575234,0.98398131,219.42,218.8,0.19140987]
[1693500575434,0.83832993,219.41,218.8,0.19140987]
[1693500575631,0.83832993,219.41,218.79,0.19140987]
[1693500575935,0.14565138,219.36,218.8,0.19140987]
[1693500576137,0.83832993,219.35,218.73,0.19140987]
[1693500576436,0.83832993,219.35,218.74,0.19140987]
[1693500576834,0.97100923,219.43,218.74,0.26569541]
[1693500576835,0.83832993,219.34,218.74,0.26569541]
[1693500577033,0.83832993,219.34,218.75,0.19140987]
[1693500577236,0.83832993,219.33,218.75,0.19140987]
[1693500577431,0.83832993,219.36,218.75,0.19140987]
[1693500577637,0.83832993,219.35,218.75,0.19140987]
[1693500577835,0.98398131,219.35,218.74,0.19140987]
[1693500578136,0.98398131,219.35,218.72,0.07428554]
[1693500578137,0.83832993,219.34,218.75,0.19140987]
[1693500578436,0.83832993,219.34,218.76,0.19140987]
[1693500578631,0.98398131,219.35,218.74,0.19140987]
[1693500578829,0.83832993,219.34,218.75,0.19140987]
[1693500579033,0.98398131,219.34,218.74,0.19140987]
[1693500579234,0.83832993,219.33,218.75,0.19140987]
[1693500579536,0.83832993,219.33,218.76,0.19140987]
[1693500579730,0.83832993,219.33,218.74,0.19140987]
[1693500579934,0.83832993,219.33,218.75,0.19140987]
[1693500580938,0.83832993,219.33,218.75,0.26569541]
[1693500581138,0.83832993,219.33,218.76,0.19140987]
[1693500581338,0.98398131,219.33,218.76,0.19140987]
[1693500581539,0.98398131,219.32,218.77,0.19140987]
[1693500581738,0.83832993,219.31,218.78,0.19140987]
[1693500581938,0.83832993,219.3,218.79,0.19140987]
[1693500582140,0.83832993,219.32,218.77,0.26569541]
[1693500582340,0.83832993,219.31,218.78,0.19140987]
[1693500582634,0.83832993,219.3,218.78,0.19140987]
[1693500582841,0.83832993,219.29,218.78,0.19140987]
[1693500583139,0.83832993,219.34,218.83,0.07428554]
[1693500583442,0.14565138,219.41,218.84,0.26569541]
[1693500583638,0.83831956,219.4,218.84,0.26569541]
[1693500583835,0.98397094,219.4,218.86,0.07428554]
[1693500584037,0.98397094,219.39,218.85,0.26569541]
[1693500584246,0.98397094,219.39,218.87,0.19140987]
[1693500584543,0.83831956,219.38,218.88,0.19140987]
[1693500584742,0.83831956,219.39,218.86,0.19140987]
[1693500585045,0.83831956,219.38,218.87,0.19140987]
[1693500585243,0.83831956,219.4,218.85,0.26569541]
[1693500585543,0.83831956,219.39,218.86,0.19140987]
[1693500585737,0.83831956,219.39,218.84,0.19140987]
[1693500585934,0.83831956,219.39,218.85,0.19140987]
[1693500586140,0.83831956,219.4,218.85,0.26569541]
[1693500586440,0.83831956,219.39,218.86,0.19140987]
[1693500586641,0.83831956,219.41,218.86,0.19140987]
[1693500587138,0.83831956,219.42,218.85,0.19140987]
[1693500587343,0.83831956,219.41,218.86,0.19140987]
[1693500587538,0.83831956,219.41,218.84,0.19140987]
[1693500587845,0.83831956,219.41,218.85,0.19140987]
[1693500588046,0.98397094,219.41,218.86,0.19140987]
[1693500588343,0.83831956,219.4,218.87,0.19140987]
[1693500588540,0.83831956,219.39,218.88,0.19140987]
[1693500588736,0.14565138,219.41,218.81,0.07428554]
[1693500588737,0.83831956,219.38,218.89,0.19140987]
[1693500588937,0.83831956,219.4,218.82,0.19140987]
[1693500589135,0.83831956,219.39,218.83,0.19140987]
[1693500589340,0.83831956,219.4,218.82,0.19140987]
[1693500589536,0.83831956,219.39,218.83,0.19140987]
[1693500589738,0.98397094,219.41,218.83,0.19140987]
[1693500589936,0.83831956,219.4,218.83,0.19140987]
[1693500590140,0.14565138,219.38,218.82,0.19140987]
[1693500590339,0.98397094,219.37,218.83,0.19140987]
[1693500590544,0.83831956,219.36,218.77,0.19140987]
[1693500590741,0.83831956,219.36,218.78,0.19140987]
[1693500590944,0.83831956,219.36,218.77,0.19140987]
[1693500591243,0.14565138,219.35,218.78,0.19140987]
[1693500591444,0.83831956,219.34,218.79,0.19140987]
[1693500591638,0.83831956,219.35,218.77,0.19140987]
[1693500591839,0.83831956,219.35,218.76,0.07428554]
[1693500591840,0.83831956,219.34,218.78,0.19140987]
[1693500592042,0.83831956,219.36,218.77,0.19140987]
[1693500592545,0.83831956,219.36,218.76,0.19140987]
[1693500592746,0.83831956,219.36,218.77,0.19140987]
[1693500592946,0.98397094,219.36,218.77,0.19140987]
[1693500593139,0.83831956,219.35,218.77,0.19140987]
[1693500593646,0.98397094,219.35,218.78,0.19140987]
[1693500593846,0.83831956,219.34,218.76,0.19140987]
[1693500594246,0.83831956,219.35,218.76,0.19140987]
[1693500594541,0.14565138,219.36,218.76,0.19140987]
[1693500594542,0.83831956,219.34,218.76,0.19140987]
[1693500594741,0.98397094,219.35,218.76,0.19140987]
[1693500594946,0.83831956,219.34,218.76,0.19140987]
[1693500595542,0.83831956,219.34,218.75,0.26569541]
[1693500595741,0.83831956,219.34,218.76,0.19140987]
[1693500595942,0.83831956,219.34,218.75,0.19140987]
[1693500596248,0.98397094,219.34,218.76,0.19140987]
[1693500596450,0.83831956,219.33,218.74,0.19140987]
[1693500597049,0.83831956,219.32,218.74,0.26569541]
[1693500597253,0.83831956,219.31,218.75,0.19140987]
[1693500597450,0.14565138,219.34,218.75,0.19140987]
[1693500597451,0.83831956,219.33,218.75,0.19140987]
[1693500597649,0.83831956,219.32,218.74,0.19140987]
[1693500597852,0.83831956,219.33,218.75,0.19140987]
[1693500598151,0.83831956,219.33,218.76,0.19140987]
[1693500598346,0.83831956,219.33,218.74,0.19140987]
[1693500598947,0.83831956,219.33,218.74,0.26569541]
[1693500599150,0.83831956,219.33,218.75,0.19140987]
[1693500599347,0.83831956,219.33,218.76,0.07428554]
[1693500599552,0.98397094,219.35,218.77,0.19140987]
[1693500599750,0.83831956,219.34,218.76,0.19140987]
[1693500601350,0.83831956,219.34,218.76,0.26569541]
[1693500601649,0.83831956,219.35,218.77,0.19140987]
[1693500601849,0.83831956,219.34,218.77,0.19140987]
[1693500602144,0.98397094,219.36,218.76,0.26569541]
[1693500602347,0.83831956,219.35,218.77,0.26569541]
[1693500602652,0.83831956,219.34,218.78,0.26569541]
[1693500602951,0.83831956,219.37,218.79,0.19140987]
[1693500603145,0.83831956,219.36,218.79,0.19140987]
[1693500603346,0.83831956,219.35,218.79,0.19140987]
[1693500603549,0.98397094,219.37,218.79,0.19140987]
[1693500603747,0.83831956,219.36,218.79,0.19140987]
[1693500603946,0.14565138,219.34,218.82,0.07428554]
[1693500604146,0.98397094,219.33,218.83,0.19140987]
[1693500604351,0.98397094,219.33,218.81,0.07428554]
[1693500604352,0.83831956,219.32,218.82,0.19140987]
[1693500604554,0.83831956,219.32,218.83,0.19140987]
[1693500604748,0.83831956,219.32,218.82,0.26569541]
[1693500605052,0.83831956,219.32,218.83,0.19140987]
[1693500605248,0.98397094,219.33,218.83,0.19140987]
[1693500605454,0.83831956,219.32,218.83,0.19140987]
[1693500605755,0.14565138,219.31,218.83,0.19140987]
[1693500606054,0.14565138,219.26,218.85,0.07428554]
[1693500606254,0.14565138,219.28,218.88,0.07428554]
[1693500606451,0.14565138,219.28,218.87,0.07428554]
[1693500606652,0.14565138,219.28,218.88,0.19140987]
[1693500607048,0.14565138,219.28,218.88,0.26569541]
[1693500607255,0.14565138,219.28,218.89,0.19140987]
[1693500608049,0.14565138,219.27,218.89,0.19140987]
[1693500608255,0.14565138,219.27,218.88,0.19140987]
[1693500608849,0.14565138,219.27,218.88,0.26569541]
[1693500609156,0.14565138,219.28,218.89,0.19140987]
[1693500609554,0.48550461,219.3,218.89,0.19140987]
[1693500609555,0.14565138,219.27,218.89,0.19140987]
[1693500610356,0.14565138,219.28,218.89,0.26569541]
[1693500610553,0.14565138,219.28,218.93,0.07428554]
[1693500610756,0.14565138,219.33,218.94,0.26569541]
[1693500610957,0.14565138,219.33,218.95,0.19140987]
[1693500611358,0.14565138,219.34,218.95,0.19140987]
[1693500611559,0.14565138,219.33,218.94,0.19140987]
[1693500611758,0.14565138,219.33,218.95,0.19140987]
[1693500612058,0.14565138,219.33,218.96,0.19140987]
[1693500612259,0.14565138,219.33,218.93,0.19140987]
[1693500612467,0.14565138,219.33,218.94,0.19140987]
[1693500612759,0.14565138,219.33,218.95,0.19140987]
[1693500612959,0.14565138,219.33,218.78,0.49523695]
[1693500612960,0.14565138,219.32,218.94,0.19140987]
[1693500613160,0.14565138,219.33,218.95,0.19140987]
[1693500613458,0.14565138,219.27,218.96,0.19140987]
[1693500613660,0.14565138,219.27,218.88,0.19140987]
[1693500613856,0.14565138,219.27,218.89,0.19075866]
[1693500614055,0.14565138,219.27,218.88,0.19075866]
[1693500614459,0.14565138,219.26,218.88,0.19075866]
[1693500614662,0.14565138,219.26,218.87,0.19075866]
[1693500614963,0.14565138,219.26,218.86,0.07428554]
[1693500614964,0.14565138,219.26,218.88,0.19075866]
[1693500615164,0.14565138,219.26,218.87,0.19075866]
[1693500615367,0.14565138,219.26,218.88,0.19075866]
[1693500615966,0.14565138,219.25,218.88,0.19075866]
[1693500616170,0.14565138,219.25,218.87,0.19075866]
[1693500616360,0.14565138,219.25,218.88,0.19075866]
[1693500616564,0.14565138,219.25,218.86,0.2650442]
[1693500616760,0.14565138,219.25,218.87,0.19075866]
[1693500616967,0.48550461,219.28,218.87,0.19075866]
[1693500616968,0.14565138,219.26,218.87,0.19075866]
[1693500617167,0.14565138,219.25,218.87,0.19075866]
[1693500617867,0.14565138,219.24,218.86,0.19075866]
[1693500618162,0.14565138,219.25,218.87,0.19075866]
[1693500618366,0.14565138,219.26,218.88,0.19075866]
[1693500619364,0.14565138,219.27,218.88,0.2650442]
[1693500619562,0.14565138,219.27,218.89,0.19075866]
[1693500619765,0.14565138,219.27,218.89,0.2650442]
[1693500619968,0.14565138,219.27,218.9,0.19075866]
[1693500621069,0.14565138,219.27,218.89,0.19075866]
[1693500621370,0.14565138,219.27,218.89,0.2650442]
[1693500621671,0.14565138,219.27,218.9,0.19075866]
[1693500621870,0.14565138,219.26,218.9,0.2650442]
[1693500622071,0.14565138,219.26,218.91,0.19075866]
[1693500622461,0.48550461,219.29,218.91,0.19075866]
[1693500622462,0.14565138,219.3,218.94,0.07428554]
[1693500622771,0.14565138,219.3,218.95,0.19075866]
[1693500624972,0.14565138,219.26,218.94,0.19075866]
[1693500625265,0.14565138,219.24,218.95,0.19075866]
[1693500625469,0.14565138,219.25,218.9,0.19075866]
[1693500625670,0.14565138,219.25,218.91,0.19075866]
[1693500625970,0.14565138,219.25,218.92,0.19075866]
[1693500626174,0.14565138,219.25,218.93,0.19075866]
[1693500626365,0.14565138,219.25,218.9,0.19075866]
[1693500626568,0.14565138,219.25,218.91,0.19075866]
[1693500626763,0.14565138,219.25,218.9,0.19075866]
[1693500626966,0.14565138,219.25,218.91,0.19075866]
[1693500627171,0.14565138,219.25,218.9,0.19075866]
[1693500627370,0.14565138,219.25,218.91,0.19075866]
[1693500627572,0.14565138,219.25,218.9,0.19075866]
[1693500627772,0.14565138,219.25,218.89,0.07428554]
[1693500627773,0.14565138,219.25,218.91,0.19075866]
[1693500627968,0.14565138,219.25,218.92,0.19075866]
[1693500628174,0.14565138,219.25,218.93,0.19075866]
[1693500628374,0.14565138,219.24,218.94,0.19075866]
[1693500628569,0.14565138,219.24,218.95,0.19075866]
[1693500628771,0.14565138,219.23,218.89,0.19075866]
[1693500628971,0.48550461,219.21,218.82,0.07428554]
[1693500629174,0.14565138,219.18,218.82,0.07428554]
[1693500629476,0.63115599,219.2,218.83,0.19104877]
[1693500629773,0.14565138,219.18,218.84,0.19104877]
[1693500629974,0.14565138,219.18,218.8,0.19104877]
[1693500630275,0.14565138,219.19,218.81,0.19104877]
[1693500630472,0.14565138,219.19,218.82,0.19104877]
[1693500630670,0.14565138,219.19,218.83,0.19104877]
[1693500630872,0.14565138,219.19,218.8,0.19104877]
[1693500631072,0.14565138,219.19,218.81,0.19104877]
[1693500631472,0.14565138,219.21,218.81,0.19104877]
[1693500631673,0.14565138,219.21,218.79,0.26533431]
[1693500631875,0.14565138,219.22,218.8,0.19104877]
[1693500632174,0.14565138,219.21,218.81,0.19104877]
[1693500632370,0.14565138,219.15,218.79,0.19104877]
[1693500632673,0.14565138,219.15,218.8,0.19104877]
[1693500632876,0.14565138,219.15,218.49,0.9904739]
[1693500632877,3.12476181,219.54,218.73,0.19104877]
[1693500633074,3.12476181,219.54,55.66,0.17820432]
[1693500633075,0.14599675,219.14,218.74,0.19104877]
[1693500633273,0.14599675,219.17,218.72,0.19104877]
[1693500633469,0.83911001,219.16,218.73,0.19104877]
[1693500633672,0.83911001,219.17,218.68,0.19104877]
[1693500633872,0.83910719,219.16,218.69,0.19104877]
[1693500634068,0.83910719,219.17,218.68,0.19104877]
[1693500634273,0.14599675,219.18,218.67,0.07453559]
[1693500634274,0.83910458,219.16,218.69,0.19104877]
[1693500634476,0.83910458,219.17,218.68,0.19104877]
[1693500634774,0.83910458,219.16,218.69,0.19104877]
[1693500634975,0.83910458,219.16,218.67,0.07453559]
[1693500634976,0.07285631,219.16,218.68,0.19104877]
[1693500635180,0.83910458,219.15,218.69,0.19104877]
[1693500635474,0.83910458,219.15,218.7,0.19104877]
[1693500635775,0.07285631,219.18,218.71,0.19104877]
[1693500635970,0.83911793,219.17,218.65,0.19104877]
[1693500636177,0.91197424,219.17,218.66,0.19104877]
[1693500636475,0.91197424,219.16,218.67,0.19104877]
[1693500636675,0.83911793,219.15,218.64,0.19104877]
[1693500636876,0.83911793,219.15,218.65,0.19104877]
[1693500637073,0.83911793,219.15,218.64,0.19104877]
[1693500637273,0.83911793,219.15,218.62,0.07453559]
[1693500637274,0.83911793,219.15,218.65,0.19104877]
[1693500637572,0.83911793,219.15,218.66,0.19104877]
[1693500637573,0.07285631,219.13,218.66,0.19104877]
[1693500637876,0.07285631,219.11,218.67,0.19104877]
[1693500638080,0.07285631,219.11,218.54,0.19104877]
[1693500638277,0.83911793,219.1,218.55,0.19104877]
[1693500638478,0.83911793,219.1,218.53,0.19104877]
[1693500638677,0.83911793,219.1,218.52,0.07453559]
[1693500638678,0.83911793,219.1,218.56,0.19104877]
[1693500638874,0.83911793,219.11,218.57,0.19104877]
[1693500639070,0.83911793,219.1,218.53,0.19104877]
[1693500639271,0.83911793,219.11,218.54,0.19104877]
[1693500639572,0.83911793,219.1,218.55,0.19104877]
[1693500639779,0.07285631,219.21,218.54,0.26558436]
[1693500640076,0.83924971,219.2,218.55,0.19104877]
[1693500640677,0.83924971,219.2,218.56,0.19104877]
[1693500640871,0.83924971,219.2,218.54,0.19104877]
[1693500641574,0.07285631,219.22,218.54,0.19104877]
[1693500641575,0.83924971,219.19,218.54,0.19104877]
[1693500641877,0.83924971,219.18,218.55,0.19104877]
[1693500642179,0.83924971,219.17,218.56,0.19104877]
[1693500642476,0.83924971,219.16,218.57,0.19104877]
[1693500642671,0.83924971,219.23,218.58,0.19104877]
[1693500642875,0.83924971,219.22,218.59,0.19104877]
[1693500643075,0.83924971,219.21,218.6,0.19104877]
[1693500643275,0.83924971,219.2,218.54,0.19104877]
[1693500643477,0.83924971,219.19,218.55,0.19104877]
[1693500643671,0.83924971,219.18,218.56,0.19104877]
[1693500643876,0.83924971,219.23,218.57,0.19104877]
[1693500644077,0.83924971,219.22,218.58,0.19104877]
[1693500644275,0.83924971,219.23,218.59,0.19104877]
[1693500644477,0.83924971,219.22,218.6,0.19104877]
[1693500644782,0.83924971,219.21,218.61,0.19104877]
[1693500644975,0.83924971,219.2,218.55,0.07453559]
[1693500645176,0.83924971,219.19,218.56,0.19104877]
[1693500645483,0.83924971,219.18,218.56,0.19104877]
[1693500645677,0.83924971,219.17,218.56,0.26558436]
[1693500645880,0.83924971,219.16,218.57,0.19104877]
[1693500646081,0.83924971,219.26,218.57,0.19104877]
[1693500646281,0.83924971,219.25,218.57,0.19104877]
[1693500646981,0.83924971,219.25,218.57,0.26558436]
[1693500647282,0.83924971,219.25,218.58,0.19104877]
[1693500647782,0.91210602,219.25,218.58,0.19104877]
[1693500648084,0.91210602,219.24,218.58,0.19104877]
[1693500648277,0.91210602,219.24,218.55,0.07453559]
[1693500648278,0.83924971,219.23,218.59,0.19104877]
[1693500648482,0.07285631,219.22,218.56,0.19104877]
[1693500648684,0.83924971,219.21,218.57,0.19104877]
[1693500648977,0.91210602,219.21,218.54,0.19104877]
[1693500649178,0.83924971,219.2,218.58,0.19104877]
[1693500649387,0.07285631,219.16,218.59,0.19104877]
[1693500649582,0.07285631,219.16,218.47,0.19104877]
[1693500649785,0.83924971,219.15,218.48,0.19104877]
[1693500650081,0.83924971,219.15,218.49,0.19104877]
[1693500650280,0.83924971,219.16,218.51,0.07453559]
[1693500650486,0.83924971,219.15,218.52,0.19104877]
[1693500650786,0.83924971,219.14,218.52,0.26558436]
[1693500650984,0.83924971,219.22,218.53,0.19104877]
[1693500651179,0.83924971,219.21,218.53,0.19104877]
[1693500651483,0.83924971,219.2,218.53,0.26558436]
[1693500651682,0.83924971,219.22,218.54,0.19104877]
[1693500651887,0.83924971,219.21,218.54,0.19104877]
[1693500652081,0.83924971,219.22,218.54,0.19104877]
[1693500652389,0.83924971,219.21,218.54,0.19104877]
[1693500652587,0.83924971,219.22,218.54,0.19104877]
[1693500652786,0.83924971,219.21,218.54,0.19104877]
[1693500653083,0.83924971,219.2,218.54,0.19104877]
[1693500653282,0.83924971,219.21,218.54,0.19104877]
[1693500653586,0.83924971,219.2,218.55,0.19104877]
[1693500653782,0.83924971,219.21,218.54,0.19104877]
[1693500653985,0.83924971,219.2,218.55,0.19104877]
[1693500654183,0.83924971,219.21,218.54,0.19104877]
[1693500654381,0.83924971,219.2,218.55,0.19104877]
[1693500654686,0.83924971,219.19,218.55,0.19104877]
[1693500654887,0.83924971,219.21,218.55,0.19104877]
[1693500655090,0.83924971,219.2,218.54,0.07401282]
[1693500655388,0.83924971,219.19,218.55,0.19104877]
[1693500655591,0.83924971,219.21,218.55,0.19104877]
[1693500655789,0.83924971,219.2,218.55,0.19104877]
[1693500656088,0.83924971,219.19,218.55,0.19104877]
[1693500656281,0.91167764,219.21,218.56,0.07401282]
[1693500656484,0.91167764,219.21,218.57,0.19104877]
[1693500656485,0.83924971,219.2,218.57,0.19104877]
[1693500656684,0.83924971,219.2,218.56,0.19104877]
[1693500656888,0.83924971,219.2,218.57,0.19104877]
[1693500657091,0.83924971,219.2,218.56,0.19104877]
[1693500657293,0.91167764,219.2,218.57,0.19104877]
[1693500657489,0.83924971,219.19,218.57,0.19104877]
[1693500658490,0.83924971,219.19,218.59,0.07401282]
[1693500658491,0.07242793,219.17,218.59,0.07401282]
[1693500658690,0.83924971,219.16,218.6,0.19104877]
[1693500659288,0.83924971,219.16,218.6,0.26506159]
[1693500659489,0.83924971,219.16,218.61,0.19104877]
[1693500659891,0.07242793,219.15,218.61,0.19104877]
[1693500660093,0.07242793,219.12,218.59,0.19104877]
[1693500660296,0.07242793,219.06,218.6,0.19104877]
[1693500660488,0.91167764,219.05,218.55,0.19104877]
[1693500660691,0.91167764,219.05,218.53,0.26506159]
[1693500660886,0.91167764,219.05,218.46,0.14802565]
[1693500660887,0.91167764,219.04,218.54,0.19104877]
[1693500661192,0.83924971,219.03,218.53,0.19104877]
[1693500661391,0.83924971,219.03,218.54,0.19104877]
[1693500661392,0.91167764,219.03,218.54,0.19104877]
[1693500661588,0.83924971,219.02,218.52,0.19104877]
[1693500661893,0.91167764,219.02,218.52,0.19104877]
[1693500662096,0.83924971,219.01,218.51,0.19104877]
[1693500662298,0.07242793,218.97,218.52,0.19104877]
[1693500662594,0.07242793,218.93,218.53,0.19104877]
[1693500662790,0.07242793,218.92,218.49,0.19104877]
[1693500663588,0.07242793,218.98,218.49,0.19104877]
[1693500663793,0.07242793,218.99,218.44,0.26506159]
[1693500664093,0.91229476,218.98,218.45,0.19104877]
[1693500664293,0.07242793,218.96,218.45,0.19104877]
[1693500664493,0.83986683,218.95,218.45,0.19104877]
[1693500664893,0.83986683,218.95,218.44,0.19104877]
[1693500665094,0.83986683,218.94,218.46,0.19104877]
[1693500665294,0.83986683,218.99,218.46,0.19104877]
[1693500665494,0.07242793,219.0,218.45,0.19104877]
[1693500665794,0.83987852,218.99,218.47,0.19104877]
[1693500665985,0.83987852,218.99,218.48,0.19104877]
[1693500666191,0.83987852,218.98,218.43,0.19104877]
[1693500666393,0.91230645,219.0,218.43,0.19104877]
[1693500666594,0.83987852,218.99,218.43,0.19104877]
[1693500666995,0.83987852,218.99,218.43,0.26506159]
[1693500667195,0.83987852,218.99,218.44,0.19104877]
[1693500667396,0.83987852,218.98,218.45,0.19104877]
[1693500667691,0.83987852,218.98,218.18,0.98683769]
[1693500667692,0.83987852,218.97,218.46,0.19104877]
[1693500667895,0.83987852,218.98,218.39,0.19104877]
[1693500668097,0.83987852,218.96,218.47,0.19104877]
[1693500668299,0.83987852,218.97,218.48,0.19104877]
[1693500668498,0.83987852,218.96,218.39,0.19104877]
[1693500668699,0.83987852,218.98,218.4,0.19104877]
[1693500668896,0.83987852,218.98,218.23,0.49341884]
[1693500668897,0.83987852,218.97,218.39,0.19104877]
[1693500669092,0.83987852,218.97,218.4,0.19104877]
[1693500669298,0.83987852,218.96,218.37,0.19104877]
[1693500669494,0.83987852,219.0,218.38,0.19104877]
[1693500669699,0.83987852,218.99,218.37,0.26506159]
[1693500669895,0.91230645,219.01,218.38,0.19104877]
[1693500670094,0.91230645,219.01,218.3,0.14802565]
[1693500670095,0.07242793,218.95,218.37,0.19104877]
[1693500670400,0.07242793,218.93,218.39,0.19104877]
[1693500670603,0.91230645,218.94,218.4,0.19104877]
[1693500670802,0.83987852,218.93,218.4,0.19104877]
[1693500670998,0.83987852,218.96,218.41,0.19104877]
[1693500671202,0.83987852,218.96,218.26,0.19104877]
[1693500671598,0.83987852,218.96,218.24,0.07401282]
[1693500671599,0.91230645,218.96,218.25,0.19104877]
[1693500671804,0.07242793,218.95,218.27,0.19104877]
[1693500672103,0.07242793,218.95,218.24,0.19104877]
[1693500672104,0.91230645,218.95,218.24,0.19104877]
[1693500672304,0.83987852,218.94,218.24,0.19104877]
[1693500672506,0.07242793,218.9,218.25,0.19104877]
[1693500672706,0.91230645,218.89,218.25,0.19104877]
[1693500672906,0.91230645,218.89,218.17,0.19104877]
[1693500672907,0.07242793,218.87,218.17,0.19104877]
[1693500673201,0.83987852,218.88,218.18,0.19104877]
[1693500673399,0.83987852,218.86,218.18,0.19104877]
[1693500673603,0.07242793,218.86,218.07,0.19104877]
[1693500673905,0.91230645,218.85,218.07,0.19104877]
[1693500674098,0.91230645,218.85,218.19,0.19104877]
[1693500674303,0.07242793,218.83,218.2,0.19104877]
[1693500674806,0.83987852,218.82,218.2,0.19104877]
[1693500675206,0.83987852,218.82,218.02,0.07401282]
[1693500675600,0.83987852,218.88,218.21,0.19104877]
[1693500675808,0.83987852,218.88,218.22,0.19104877]
[1693500676006,0.83987852,218.81,218.22,0.19104877]
[1693500676202,0.83987852,219.01,218.22,0.19104877]
[1693500676406,0.83987852,219.01,218.04,0.26506159]
[1693500676607,0.83987852,218.8,218.1,0.07401282]
[1693500676809,0.83987852,218.8,218.23,0.19104877]
[1693500677208,0.07242793,219.12,218.23,0.19104877]
[1693500677408,0.84018569,219.11,218.12,0.07401282]
[1693500677611,0.84018569,219.12,218.13,0.07401282]
[1693500677911,0.84018569,219.12,218.24,0.19104877]
[1693500678108,0.84018569,219.12,218.25,0.19104877]
[1693500678309,0.84018569,219.12,218.14,0.19104877]
[1693500678510,0.84018569,219.13,218.14,0.19104877]
[1693500678806,0.84018569,219.11,218.26,0.19104877]
[1693500679008,0.84018569,219.1,218.18,0.07401282]
[1693500679311,0.84018569,219.1,218.21,0.07401282]
[1693500679502,0.84018569,219.18,218.21,0.07401282]
[1693500679707,0.84018569,219.18,218.19,0.19104877]
[1693500679708,0.84018569,219.18,218.23,0.07401282]
[1693500679908,0.84018569,219.09,218.24,0.19104877]
[1693500680407,0.84018569,219.08,218.25,0.19104877]
[1693500680611,0.84018569,219.08,218.26,0.19104877]
[1693500680812,0.84018569,219.19,218.26,0.19104877]
[1693500681114,0.84018569,219.07,218.27,0.19104877]
[1693500681507,0.07242793,219.14,218.19,0.19104877]
[1693500681711,0.84018569,219.06,218.19,0.19104877]
[1693500681906,0.07242793,219.12,218.2,0.19104877]
[1693500682111,0.84018569,219.05,218.18,0.19104877]
[1693500682416,0.84018569,219.04,218.21,0.19104877]
[1693500682614,0.91261362,219.04,218.22,0.19104877]
[1693500682915,0.91261362,219.03,218.11,0.19104877]
[1693500683211,0.84018569,219.02,218.12,0.19104877]
[1693500683411,0.84018569,219.03,218.12,0.19104877]
[1693500683604,0.84018569,219.01,218.13,0.19104877]
[1693500683812,0.07242793,219.02,218.1,0.19104877]
[1693500684018,0.84018569,219.01,218.11,0.19104877]
[1693500684212,0.91261362,219.01,218.08,0.19104877]
[1693500684415,0.07242793,218.96,218.12,0.19104877]
[1693500684714,0.84018569,218.95,218.13,0.19104877]
[1693500685115,0.84018569,218.96,218.02,0.19104877]
[1693500685313,0.84018569,218.98,218.14,0.19104877]
[1693500685513,0.84018569,218.95,218.06,0.07401282]
[1693500685718,0.84018569,218.95,218.03,0.19104877]
[1693500685719,0.84018569,218.94,218.15,0.19104877]
[1693500686018,0.84018569,218.93,218.16,0.19104877]
[1693500686218,0.84018569,219.04,218.17,0.19104877]
[1693500686515,0.91261362,219.04,218.09,0.19104877]
[1693500686715,0.84018569,219.03,218.1,0.19104877]
[1693500686915,0.84018569,219.03,218.09,0.19104877]
[1693500687117,0.91261362,219.03,218.09,0.19104877]
[1693500687315,0.91261362,219.02,218.08,0.19104877]
[1693500687516,0.84018569,219.01,218.09,0.19104877]
[1693500687717,0.84018569,219.01,218.08,0.19104877]
[1693500687913,0.84018569,219.01,218.09,0.19104877]
[1693500688114,0.84018569,219.01,217.83,0.98683769]
[1693500688115,0.07242793,218.97,218.07,0.19104877]
[1693500688319,0.07242793,218.97,217.77,0.98683769]
[1693500688320,0.07242793,218.95,218.08,0.19104877]
[1693500688516,0.07242793,218.95,218.03,0.26506159]
[1693500688716,0.84018569,218.94,218.09,0.19104877]
[1693500688913,0.84018569,218.94,218.04,0.19104877]
[1693500689119,0.84018569,218.94,218.05,0.19104877]
[1693500689317,0.84018569,218.94,218.0,0.19104877]
[1693500689517,0.91261362,218.94,218.01,0.19104877]
[1693500689713,0.91261362,218.94,218.0,0.19104877]
[1693500689921,0.84018569,218.93,218.01,0.19104877]
[1693500690220,0.84018569,218.93,218.0,0.19104877]
[1693500690418,0.07242793,218.91,218.02,0.19104877]
[1693500690617,0.07242793,218.91,218.01,0.19104877]
[1693500690818,0.07242793,218.87,218.03,0.19104877]
[1693500691017,0.07242793,218.87,218.02,0.19104877]
[1693500691214,0.84018569,218.86,218.02,0.19104877]